[Event "IV Elllobregat Open Chess Tmnt"]
[Site "Sant Boi de Llobregat, Spain"]
[Date "2023.12.02"]
[Round "3.12"]
[White "Agmanov, Zhandos"]
[Black "Muradli, Mahammad"]
[Result "1-0"]
[TimeControl "90min/40moves + 15min/end + 30sec from move 1"]
[WhiteFideId "13708309"]
[BlackFideId "13409301"]
[WhiteElo "2448"]
[BlackElo "2550"]

1. e4 {[%clk 01:30:58]} c5 {[%clk 01:22:54]} {[%emt 00:08:06]} 2. Nf3 {[%clk
01:30:44]} {[%emt 00:00:43]} d6 {[%clk 01:23:18]} {[%emt 00:00:08]} 3. d4
{[%clk 01:31:08]} {[%emt 00:00:06]} cxd4 {[%clk 01:23:39]} {[%emt 00:00:09]} 4.
Nxd4 {[%clk 01:31:33]} {[%emt 00:00:04]} Nf6 {[%clk 01:23:59]} {[%emt
00:00:11]} 5. Nc3 {[%clk 01:31:50]} {[%emt 00:00:10]} a6 {[%clk 01:24:24]}
{[%emt 00:00:08]} 6. Be3 {[%clk 01:31:06]} {[%emt 00:01:13]} e5 {[%clk
01:24:44]} {[%emt 00:00:11]} 7. Nb3 {[%clk 01:31:28]} {[%emt 00:00:05]} Be6
{[%clk 01:25:06]} {[%emt 00:00:11]} 8. h3 {[%clk 01:30:56]} {[%emt 00:01:01]}
Be7 {[%clk 01:19:28]} {[%emt 00:06:08]} 9. Qf3 {[%clk 01:30:12]} {[%emt
00:01:14]} b5 {[%clk 01:16:08]} {[%emt 00:03:50]} 10. g4 {[%clk 01:26:28]}
{[%emt 00:04:14]} b4 {[%clk 01:12:39]} {[%emt 00:03:59]} 11. Nd5 {[%clk
01:26:16]} {[%emt 00:00:41]} Nxd5 {[%clk 01:12:24]} {[%emt 00:00:46]} 12. exd5
{[%clk 01:26:40]} {[%emt 00:00:06]} Bc8 {[%clk 01:12:15]} {[%emt 00:00:38]} 13.
a3 {[%clk 01:15:39]} {[%emt 00:11:32]} bxa3 {[%clk 01:05:21]} {[%emt 00:07:22]}
14. Rxa3 {[%clk 01:15:48]} {[%emt 00:00:22]} O-O {[%clk 01:05:38]} {[%emt
00:00:13]} 15. Bd3 {[%clk 01:11:31]} {[%emt 00:04:47]} f5 {[%clk 00:57:41]}
{[%emt 00:08:28]} 16. gxf5 {[%clk 01:09:31]} {[%emt 00:02:29]} g6 {[%emt
00:39:23]} 17. Rg1 {[%clk 00:27:02]} {[%emt 00:03:55]} Kh8 {[%emt 00:08:43]} 18.
Bh6 {[%clk 00:20:57]} {[%emt 00:05:14]} Rf7 {[%clk 00:48:56]} {[%emt 00:02:34]}
19. Nc5 {[%clk 00:17:18]} {[%emt 00:04:10]} dxc5 {[%clk 00:33:50]} {[%emt
00:15:35]} 20. d6 {[%clk 00:17:12]} {[%emt 00:00:37]} Bxd6 {[%clk 00:30:18]}
{[%emt 00:04:02]} 21. Qd5 {[%clk 00:03:57]} {[%emt 00:13:45]} Raa7 {[%clk
00:06:16]} {[%emt 00:24:31]} 22. fxg6 {[%clk 00:04:26]} {[%emt 00:00:02]} Rg7
{[%clk 00:06:21]} {[%emt 00:00:25]} 23. Be4 {[%clk 00:01:08]} {[%emt 00:03:48]}
c4 {[%clk 00:01:35]} {[%emt 00:05:16]} 24. Ke2 {[%clk 00:01:37]} Qh4 {[%clk
00:00:54]} {[%emt 00:01:10]} 25. Bxg7+ {[%clk 00:00:59]} {[%emt 00:01:09]} Rxg7
{[%clk 00:01:21]} {[%emt 00:00:03]} 26. Re3 {[%clk 00:00:43]} {[%emt 00:00:46]}
Qe7 {[%clk 00:00:58]} {[%emt 00:00:52]} 27. Rd1 {[%clk 00:00:40]} {[%emt
00:00:34]} Bc7 {[%clk 00:01:02]} {[%emt 00:00:26]} 28. gxh7 {[%clk 00:00:40]}
{[%emt 00:00:29]} Be6 {[%clk 00:01:00]} {[%emt 00:00:31]} 29. Qb7 {[%clk
00:01:09]} {[%emt 00:00:02]} Qh4 {[%clk 00:00:38]} {[%emt 00:00:52]} 30. Rf3
{[%clk 00:01:21]} {[%emt 00:00:19]} Qe7 {[%clk 00:00:31]} {[%emt 00:00:36]} 31.
Qxc7 {[%clk 00:01:21]} {[%emt 00:00:31]} Qxc7 {[%clk 00:00:31]} {[%emt
00:00:30]} 32. Rf8+ {[%clk 00:01:50]} Bg8 {[%clk 00:00:36]} {[%emt 00:00:25]}
33. Rdd8 {[%clk 00:02:02]} {[%emt 00:00:18]} 1-0

[Event "IV Elllobregat Open Chess Tmnt"]
[Site "Sant Boi de Llobregat, Spain"]
[Date "2023.12.02"]
[Round "3.13"]
[White "Gholami Orimi, Mahdi"]
[Black "Pranesh, M"]
[Result "1-0"]
[TimeControl "90min/40moves + 15min/end + 30sec from move 1"]
[WhiteFideId "12558486"]
[BlackFideId "35028600"]
[WhiteElo "2442"]
[BlackElo "2519"]

1. c4 {[%clk 01:30:48]} {[%emt 00:00:11]} e6 {[%clk 01:30:49]} {[%emt
00:00:11]} 2. Nf3 {[%clk 01:30:58]} {[%emt 00:00:20]} d5 {[%clk 01:31:06]}
{[%emt 00:00:14]} 3. e3 {[%clk 01:31:19]} {[%emt 00:00:09]} c5 {[%clk
01:30:18]} {[%emt 00:01:18]} 4. cxd5 {[%clk 01:28:15]} {[%emt 00:03:34]} exd5
{[%clk 01:30:28]} {[%emt 00:00:20]} 5. d4 {[%clk 01:28:17]} {[%emt 00:00:27]}
Nc6 {[%clk 01:28:49]} {[%emt 00:02:08]} 6. Nc3 {[%clk 01:28:07]} {[%emt
00:00:40]} Nf6 {[%clk 01:28:16]} {[%emt 00:01:03]} 7. Bb5 {[%clk 01:18:51]}
{[%emt 00:09:46]} a6 {[%clk 01:20:05]} {[%emt 00:08:41]} 8. Bxc6+ {[%clk
01:18:01]} {[%emt 00:01:20]} bxc6 {[%clk 01:20:28]} {[%emt 00:00:06]} 9. O-O
{[%clk 01:15:49]} {[%emt 00:02:42]} Bd6 {[%clk 01:16:23]} {[%emt 00:04:35]} 10.
dxc5 {[%clk 01:02:08]} {[%emt 00:14:11]} Bxc5 {[%clk 01:16:18]} {[%emt
00:00:35]} 11. b3 {[%clk 00:55:26]} {[%emt 00:07:12]} O-O {[%clk 01:14:17]}
{[%emt 00:02:31]} 12. Bb2 {[%clk 00:54:00]} {[%emt 00:01:57]} Bg4 {[%clk
01:10:53]} {[%emt 00:03:54]} 13. Rc1 {[%clk 00:53:29]} {[%emt 00:01:01]} Bd6
{[%clk 01:09:59]} {[%emt 00:01:23]} 14. Ne2 {[%clk 00:49:43]} {[%emt 00:04:17]}
c5 {[%clk 01:06:22]} {[%emt 00:04:08]} 15. Ng3 {[%clk 00:32:30]} {[%emt
00:17:42]} Be6 {[%clk 00:59:26]} {[%emt 00:07:26]} 16. Be5 {[%clk 00:29:34]}
{[%emt 00:03:26]} Bxe5 {[%clk 00:55:35]} {[%emt 00:04:21]} 17. Nxe5 {[%clk
00:30:02]} {[%emt 00:00:02]} Qd6 {[%clk 00:54:28]} {[%emt 00:01:37]} 18. Nd3
{[%clk 00:29:16]} {[%emt 00:01:16]} Rfc8 {[%clk 00:52:17]} {[%emt 00:02:41]} 19.
Rc2 {[%clk 00:20:39]} {[%emt 00:09:08]} a5 {[%clk 00:46:40]} {[%emt 00:06:06]}
20. Qc1 {[%clk 00:21:05]} {[%emt 00:00:04]} Nd7 {[%clk 00:46:25]} {[%emt
00:00:45]} 21. Rd1 {[%clk 00:20:45]} {[%emt 00:00:51]} a4 {[%clk 00:42:14]}
{[%emt 00:04:40]} 22. b4 {[%clk 00:20:07]} {[%emt 00:01:08]} c4 {[%clk
00:41:52]} {[%emt 00:00:52]} 23. a3 {[%clk 00:20:36]} {[%emt 00:00:01]} h5
{[%clk 00:33:15]} {[%emt 00:09:06]} 24. Nf4 {[%clk 00:19:58]} {[%emt 00:01:08]}
h4 {[%clk 00:32:17]} {[%emt 00:01:28]} 25. Ne4 {[%clk 00:16:19]} {[%emt
00:04:08]} Qe5 {[%clk 00:32:22]} {[%emt 00:00:25]} 26. Nc3 {[%clk 00:16:31]}
{[%emt 00:00:18]} Nf6 {[%clk 00:30:38]} {[%emt 00:02:15]} 27. Qb2 {[%emt
00:02:40]} Bg4 {[%clk 00:24:24]} {[%emt 00:06:43]} 28. Rd4 {[%clk 00:13:13]}
{[%emt 00:01:39]} Bf5 {[%clk 00:22:33]} {[%emt 00:02:20]} 29. Rcd2 {[%clk
00:10:57]} {[%emt 00:02:47]} h3 {[%clk 00:22:25]} {[%emt 00:00:38]} 30. Nfxd5
{[%clk 00:08:20]} {[%emt 00:03:07]} Ne4 {[%clk 00:21:40]} {[%emt 00:01:15]} 31.
Nb6 {[%clk 00:07:07]} {[%emt 00:01:44]} Nxd2 {[%clk 00:19:40]} {[%emt
00:02:30]} 32. Qxd2 {[%clk 00:07:34]} {[%emt 00:00:02]} Bd3 {[%clk 00:19:49]}
{[%emt 00:00:21]} 33. Nxc8 {[%clk 00:07:12]} {[%emt 00:00:52]} Rxc8 {[%clk
00:20:12]} {[%emt 00:00:07]} 34. Qd1 {[%clk 00:07:06]} {[%emt 00:00:36]} Rc6
{[%clk 00:18:38]} {[%emt 00:02:04]} 35. Qf3 {[%clk 00:04:53]} {[%emt 00:02:42]}
Rh6 {[%clk 00:18:27]} {[%emt 00:00:40]} 36. Qf4 {[%clk 00:04:08]} {[%emt
00:01:16]} Qe6 {[%clk 00:18:18]} {[%emt 00:00:39]} 37. Qb8+ {[%clk 00:02:57]}
{[%emt 00:01:41]} Kh7 {[%clk 00:18:43]} {[%emt 00:00:05]} 38. Rd8 {[%clk
00:03:09]} {[%emt 00:00:18]} hxg2 {[%clk 00:12:47]} {[%emt 00:06:26]} 39. Rh8+
{[%clk 00:03:38]} Kg6 {[%clk 00:13:16]} {[%emt 00:00:01]} 40. Qg3+ {[%clk
00:19:04]} {[%emt 00:00:04]} Kh5 {[%clk 00:27:28]} {[%emt 00:01:18]} 41. Qf3+
{[%clk 00:14:31]} {[%emt 00:05:03]} Kg6 {[%clk 00:26:23]} {[%emt 00:01:34]} 42.
Qxg2+ {[%clk 00:12:50]} {[%emt 00:02:12]} Kh5 {[%clk 00:25:42]} {[%emt
00:01:11]} 43. Qd5+ {[%clk 00:12:16]} {[%emt 00:01:02]} Kg4 {[%clk 00:24:53]}
{[%emt 00:01:21]} 44. f3+ {[%clk 00:12:11]} {[%emt 00:00:35]} Kh4 {[%clk
00:25:12]} {[%emt 00:00:11]} 45. Qxe6 {[%clk 00:12:23]} {[%emt 00:00:18]} fxe6
{[%clk 00:25:38]} {[%emt 00:00:03]} 46. Rxh6+ {[%clk 00:12:47]} {[%emt
00:00:07]} gxh6 {[%clk 00:26:06]} {[%emt 00:00:02]} 47. e4 {[%clk 00:12:42]}
{[%emt 00:00:36]} Kg5 {[%clk 00:26:27]} {[%emt 00:00:08]} 48. b5 {[%clk
00:12:51]} {[%emt 00:00:22]} 1-0

[Event "IV Elllobregat Open Chess Tmnt"]
[Site "Sant Boi de Llobregat, Spain"]
[Date "2023.12.02"]
[Round "3.14"]
[White "Levin, Guy"]
[Black "Prraneeth, Vuppala"]
[Result "1-0"]
[TimeControl "90min/40moves + 15min/end + 30sec from move 1"]
[WhiteFideId "2824213"]
[BlackFideId "46622373"]
[WhiteElo "2404"]
[BlackElo "2512"]

1. Nf3 {[%clk 01:30:56]} {[%emt 00:00:03]} d5 {[%clk 01:30:01]} {[%emt
00:00:59]} 2. e3 {[%clk 01:31:18]} {[%emt 00:00:07]} Nd7 {[%clk 01:28:48]}
{[%emt 00:01:44]} 3. c4 {[%clk 01:31:31]} {[%emt 00:00:17]} e6 {[%clk
01:29:04]} {[%emt 00:00:14]} 4. Nc3 {[%clk 01:31:37]} {[%emt 00:00:23]} Ngf6
{[%clk 01:29:07]} {[%emt 00:00:28]} 5. b3 {[%clk 01:31:59]} {[%emt 00:00:08]}
a6 {[%clk 01:25:49]} {[%emt 00:03:49]} 6. Bb2 {[%clk 01:32:15]} {[%emt
00:00:14]} Bd6 {[%clk 01:25:18]} {[%emt 00:01:01]} 7. Qc2 {[%clk 01:32:02]}
{[%emt 00:00:43]} O-O {[%clk 01:24:58]} {[%emt 00:00:50]} 8. Rg1 {[%clk
01:27:06]} {[%emt 00:05:25]} dxc4 {[%clk 01:19:01]} {[%emt 00:06:28]} 9. bxc4
{[%clk 01:26:42]} {[%emt 00:00:55]} b5 {[%clk 01:17:22]} {[%emt 00:02:09]} 10.
cxb5 {[%clk 01:10:53]} {[%emt 00:16:19]} axb5 {[%clk 01:17:26]} {[%emt
00:00:26]} 11. Bxb5 {[%clk 01:09:06]} {[%emt 00:02:17]} Bb7 {[%clk 01:17:10]}
{[%emt 00:00:45]} 12. Ke2 {[%clk 01:03:12]} {[%emt 00:06:23]} Qe7 {[%clk
01:09:21]} {[%emt 00:08:19]} 13. a4 {[%clk 01:01:26]} {[%emt 00:02:17]} e5
{[%clk 01:05:46]} {[%emt 00:04:06]} 14. d3 {[%clk 01:01:01]} {[%emt 00:00:54]}
c6 {[%clk 00:56:34]} {[%emt 00:09:42]} 15. Bc4 {[%clk 01:01:15]} {[%emt
00:00:15]} Nb6 {[%clk 00:56:49]} {[%emt 00:00:16]} 16. Nd2 {[%clk 00:58:31]}
{[%emt 00:03:14]} Rfd8 {[%clk 00:49:47]} {[%emt 00:07:33]} 17. g4 {[%clk
00:49:58]} {[%emt 00:09:02]} Nxc4 {[%clk 00:26:48]} {[%emt 00:23:30]} 18. Nxc4
{[%clk 00:47:58]} {[%emt 00:02:30]} Qe6 {[%clk 00:18:00]} {[%emt 00:09:18]} 19.
g5 {[%clk 00:41:27]} {[%emt 00:07:00]} Nd7 {[%clk 00:14:05]} {[%emt 00:04:26]}
20. Ne4 {[%clk 00:27:19]} {[%emt 00:14:38]} Be7 {[%clk 00:14:11]} {[%emt
00:00:24]} 21. Ba3 {[%clk 00:21:51]} {[%emt 00:05:59]} Ba6 {[%clk 00:14:10]}
{[%emt 00:00:31]} 22. Bxe7 {[%clk 00:21:12]} {[%emt 00:01:08]} Qxe7 {[%clk
00:10:12]} {[%emt 00:00:02]} 23. Ncd6 {[%clk 00:18:37]} Rab8 {[%clk 00:10:12]}
24. Qa2 {[%clk 00:18:37]} Rb4 {[%clk 00:10:12]} 25. Nf5 {[%clk 00:18:37]} Qf8
{[%clk 00:10:12]} 26. Ned6 {[%clk 00:18:37]} g6 {[%clk 00:10:12]} 27. Nxf7
{[%clk 00:18:37]} Rdb8 {[%clk 00:10:12]} 28. Nxe5+ {[%clk 00:18:37]} Kh8 {[%clk
00:10:12]} 29. Nf7+ {[%clk 00:18:37]} Kg8 {[%clk 00:10:12]} 30. N5h6+ {[%clk
00:18:37]} Kg7 {[%clk 00:10:12]} 31. Rab1 {[%clk 00:18:37]} Bxd3+ {[%clk
00:10:12]} 32. Kxd3 {[%clk 00:18:37]} Rxa4 {[%clk 00:10:12]} 33. Qc2 {[%clk
00:18:37]} Nc5+ {[%clk 00:10:12]} 34. Ke2 {[%clk 00:18:37]} 1-0

[Event "IV Elllobregat Open Chess Tmnt"]
[Site "Sant Boi de Llobregat, Spain"]
[Date "2023.12.02"]
[Round "3.15"]
[White "Ioannidis, Evgenios"]
[Black "Rakhmatullaev, Almas"]
[Result "1-0"]
[TimeControl "90min/40moves + 15min/end + 30sec from move 1"]
[WhiteFideId "4229274"]
[BlackFideId "14205793"]
[WhiteElo "2502"]
[BlackElo "2383"]

1. d4 {[%clk 01:30:54]} {[%emt 00:00:05]} d5 {[%clk 01:29:43]} {[%emt
00:01:18]} 2. c4 {[%clk 01:31:09]} {[%emt 00:00:15]} e6 {[%clk 01:29:56]}
{[%emt 00:00:16]} 3. Nf3 {[%clk 01:29:53]} {[%emt 00:01:46]} a6 {[%clk
01:30:01]} {[%emt 00:00:26]} 4. Bg5 {[%clk 01:29:51]} {[%emt 00:00:31]} Be7
{[%clk 01:30:24]} {[%emt 00:00:07]} 5. Bxe7 {[%clk 01:30:15]} {[%emt 00:00:06]}
Qxe7 {[%clk 01:30:51]} {[%emt 00:00:04]} 6. Nbd2 {[%clk 01:30:27]} {[%emt
00:00:17]} Nf6 {[%clk 01:31:07]} {[%emt 00:00:14]} 7. g3 {[%clk 01:29:42]}
{[%emt 00:01:15]} O-O {[%clk 01:29:46]} {[%emt 00:01:51]} 8. Rc1 {[%clk
01:26:14]} {[%emt 00:03:58]} b6 {[%clk 01:22:43]} {[%emt 00:07:32]} 9. cxd5
{[%clk 01:23:33]} {[%emt 00:03:12]} exd5 {[%clk 01:22:44]} {[%emt 00:00:29]} 10.
Bg2 {[%clk 01:22:48]} {[%emt 00:01:14]} Be6 {[%clk 01:20:57]} {[%emt 00:02:18]}
11. O-O {[%clk 01:20:57]} {[%emt 00:02:20]} c5 {[%clk 01:17:58]} {[%emt
00:03:29]} 12. Ng5 {[%clk 01:07:36]} {[%emt 00:13:51]} Nbd7 {[%clk 01:02:18]}
{[%emt 00:16:09]} 13. e4 {[%clk 00:54:24]} {[%emt 00:13:42]} Nxe4 {[%clk
00:46:50]} {[%emt 00:15:58]} 14. Nxe6 {[%clk 00:45:06]} {[%emt 00:09:49]} Qxe6
{[%clk 00:46:05]} {[%emt 00:01:15]} 15. Re1 {[%clk 00:45:24]} {[%emt 00:00:11]}
Qf6 {[%clk 00:44:52]} {[%emt 00:01:43]} 16. Nxe4 {[%clk 00:43:29]} {[%emt
00:02:26]} dxe4 {[%clk 00:45:14]} {[%emt 00:00:08]} 17. Rxe4 {[%clk 00:41:05]}
{[%emt 00:02:54]} Rad8 {[%clk 00:44:57]} {[%emt 00:00:47]} 18. Rf4 {[%clk
00:34:40]} {[%emt 00:06:56]} Qh6 {[%clk 00:44:31]} {[%emt 00:00:56]} 19. Qc2
{[%clk 00:30:26]} {[%emt 00:04:45]} cxd4 {[%clk 00:31:58]} {[%emt 00:13:02]} 20.
Rxd4 {[%clk 00:29:51]} {[%emt 00:01:05]} Nf6 {[%clk 00:27:32]} {[%emt
00:04:54]} 21. Rcd1 {[%clk 00:29:57]} {[%emt 00:00:26]} Rxd4 {[%clk 00:26:08]}
{[%emt 00:01:54]} 22. Rxd4 {[%clk 00:30:22]} {[%emt 00:00:04]} Re8 {[%clk
00:26:02]} {[%emt 00:00:36]} 23. Bc6 {[%clk 00:26:57]} {[%emt 00:03:55]} Rf8
{[%clk 00:17:36]} {[%emt 00:08:55]} 24. Bb7 {[%clk 00:23:22]} {[%emt 00:04:06]}
Qh3 {[%clk 00:14:52]} {[%emt 00:03:14]} 25. Bxa6 {[%clk 00:21:47]} {[%emt
00:02:05]} Ng4 {[%clk 00:11:38]} {[%emt 00:03:43]} 26. f3 {[%clk 00:21:10]}
{[%emt 00:01:07]} Ne5 {[%clk 00:09:53]} {[%emt 00:02:15]} 27. Qe4 {[%clk
00:20:19]} {[%emt 00:01:21]} Qe6 {[%clk 00:06:41]} {[%emt 00:03:43]} 28. Rd5
{[%clk 00:20:07]} {[%emt 00:00:41]} b5 {[%clk 00:04:17]} {[%emt 00:02:54]} 29.
Bxb5 {[%clk 00:19:48]} {[%emt 00:00:49]} Qb6+ {[%clk 00:04:26]} {[%emt
00:00:21]} 30. Kg2 {[%clk 00:20:06]} {[%emt 00:00:12]} Ng6 {[%clk 00:04:51]}
{[%emt 00:00:06]} 31. a4 {[%clk 00:19:05]} {[%emt 00:01:30]} Rc8 {[%clk
00:04:58]} {[%emt 00:00:23]} 32. b4 {[%clk 00:18:53]} {[%emt 00:00:43]} h6
{[%clk 00:03:24]} {[%emt 00:02:04]} 33. Bd3 {[%clk 00:18:27]} {[%emt 00:00:55]}
Nf8 {[%clk 00:01:59]} {[%emt 00:01:55]} 34. a5 {[%clk 00:18:23]} {[%emt
00:00:34]} Qf6 {[%clk 00:02:03]} {[%emt 00:00:26]} 35. Qe5 {[%clk 00:18:24]}
{[%emt 00:00:29]} 1-0

[Event "IV Elllobregat Open Chess Tmnt"]
[Site "Sant Boi de Llobregat, Spain"]
[Date "2023.12.02"]
[Round "3.16"]
[White "Bakhrillaev, Bakhrom"]
[Black "Abdisalimov, Abdimalik"]
[Result "0-1"]
[TimeControl "90min/40moves + 15min/end + 30sec from move 1"]
[WhiteFideId "14212285"]
[BlackFideId "14206323"]
[WhiteElo "2332"]
[BlackElo "2496"]

1. d4 {[%clk 01:30:57]} {[%emt 00:00:02]} Nf6 {[%clk 01:30:55]} {[%emt
00:00:05]} 2. c4 {[%clk 01:31:21]} {[%emt 00:00:05]} e6 {[%clk 01:31:23]}
{[%emt 00:00:03]} 3. Nc3 {[%clk 01:31:45]} {[%emt 00:00:07]} Bb4 {[%clk
01:31:48]} {[%emt 00:00:05]} 4. e3 {[%clk 01:32:10]} {[%emt 00:00:05]} O-O
{[%clk 01:32:14]} {[%emt 00:00:04]} 5. Bd3 {[%clk 01:32:37]} {[%emt 00:00:03]}
d5 {[%clk 01:32:33]} {[%emt 00:00:11]} 6. Nf3 {[%clk 01:33:01]} {[%emt
00:00:06]} dxc4 {[%clk 01:26:37]} {[%emt 00:06:26]} 7. Bxc4 {[%clk 01:33:28]}
{[%emt 00:00:02]} c5 {[%clk 01:27:01]} {[%emt 00:00:06]} 8. O-O {[%clk
01:33:47]} {[%emt 00:00:11]} Nc6 {[%clk 01:25:08]} {[%emt 00:02:24]} 9. a3
{[%clk 01:31:58]} {[%emt 00:02:19]} Bxc3 {[%clk 01:24:41]} {[%emt 00:00:56]} 10.
bxc3 {[%clk 01:32:26]} {[%emt 00:00:02]} Qc7 {[%clk 01:25:02]} {[%emt
00:00:09]} 11. Bb2 {[%clk 01:25:29]} {[%emt 00:07:27]} e5 {[%clk 01:24:09]}
{[%emt 00:01:22]} 12. h3 {[%clk 01:23:01]} {[%emt 00:02:59]} Bf5 {[%clk
01:16:06]} {[%emt 00:08:33]} 13. Qe2 {[%clk 01:22:59]} {[%emt 00:00:31]} Rad8
{[%clk 00:59:39]} {[%emt 00:16:56]} 14. Rfd1 {[%clk 01:20:10]} {[%emt
00:03:20]} e4 {[%clk 00:55:04]} {[%emt 00:05:05]} 15. Nd2 {[%clk 01:18:09]}
{[%emt 00:02:30]} Bg6 {[%clk 00:52:11]} {[%emt 00:03:22]} 16. Rdc1 {[%clk
01:13:45]} {[%emt 00:04:55]} Ne7 {[%clk 00:49:46]} {[%emt 00:02:55]} 17. a4
{[%clk 01:12:29]} {[%emt 00:01:47]} Nf5 {[%clk 00:49:48]} {[%emt 00:00:28]} 18.
Ba3 {[%clk 01:10:28]} {[%emt 00:02:31]} b6 {[%clk 00:50:05]} {[%emt 00:00:12]}
19. Nb3 {[%clk 01:00:07]} {[%emt 00:10:52]} Bh5 {[%clk 00:49:47]} {[%emt
00:00:48]} 20. g4 {[%clk 00:45:07]} {[%emt 00:15:29]} Nh4 {[%clk 00:49:53]}
{[%emt 00:00:24]} 21. gxh5 {[%clk 00:44:37]} {[%emt 00:01:01]} Nf3+ {[%clk
00:50:00]} {[%emt 00:00:23]} 22. Kf1 {[%clk 00:45:06]} {[%emt 00:00:01]} Qh2
{[%clk 00:49:42]} {[%emt 00:00:48]} 23. Qb2 {[%clk 00:45:21]} {[%emt 00:00:15]}
Qxh3+ {[%clk 00:47:41]} {[%emt 00:02:31]} 24. Ke2 {[%clk 00:45:38]} {[%emt
00:00:12]} Qxh5 {[%clk 00:47:56]} {[%emt 00:00:16]} 25. Nd2 {[%clk 00:41:46]}
{[%emt 00:04:22]} Nxd4+ {[%clk 00:46:15]} {[%emt 00:02:10]} 26. Ke1 {[%clk
00:42:13]} {[%emt 00:00:03]} Qh1+ {[%clk 00:43:20]} {[%emt 00:03:24]} 27. Bf1
{[%clk 00:42:36]} {[%emt 00:00:08]} Nc6 {[%clk 00:43:29]} {[%emt 00:00:21]} 28.
Qb5 {[%clk 00:25:24]} {[%emt 00:17:42]} Ne5 {[%clk 00:42:59]} {[%emt 00:00:59]}
29. Kd1 {[%clk 00:23:09]} {[%emt 00:02:45]} Nf3 {[%clk 00:42:15]} {[%emt
00:01:15]} 30. Ra2 {[%clk 00:23:18]} {[%emt 00:00:20]} Rd3 {[%clk 00:42:22]}
{[%emt 00:00:21]} 31. Ke2 {[%clk 00:22:42]} {[%emt 00:01:07]} Rfd8 {[%clk
00:42:37]} {[%emt 00:00:15]} 32. Nxe4 {[%clk 00:23:03]} {[%emt 00:00:09]} Nxe4
{[%clk 00:42:13]} {[%emt 00:00:54]} 33. Qxd3 {[%clk 00:23:12]} {[%emt
00:00:21]} Rxd3 {[%clk 00:41:43]} {[%emt 00:01:00]} 34. Kxd3 {[%clk 00:23:37]}
{[%emt 00:00:04]} Ne5+ {[%clk 00:42:07]} {[%emt 00:00:06]} 35. Kc2 {[%clk
00:22:24]} {[%emt 00:01:44]} Nxf2 {[%clk 00:42:11]} {[%emt 00:00:26]} 36. Kb1
{[%clk 00:22:28]} {[%emt 00:00:27]} Qe4+ {[%clk 00:41:37]} {[%emt 00:01:03]} 37.
Ka1 {[%clk 00:22:44]} {[%emt 00:00:14]} Nfd3 {[%clk 00:41:37]} {[%emt
00:00:30]} 38. Rd1 {[%clk 00:22:36]} {[%emt 00:00:38]} c4 {[%clk 00:40:49]}
{[%emt 00:01:19]} 39. a5 {[%clk 00:20:26]} {[%emt 00:02:40]} h6 {[%clk
00:39:47]} {[%emt 00:01:32]} 40. a6 {[%clk 00:34:40]} {[%emt 00:01:17]} Ng4
{[%clk 00:54:53]} {[%emt 00:00:23]} 41. Bd6 {[%clk 00:32:17]} {[%emt 00:02:53]}
Nxe3 {[%clk 00:54:31]} {[%emt 00:00:52]} 42. Rb1 {[%clk 00:32:26]} {[%emt
00:00:21]} Qf5 {[%clk 00:54:29]} {[%emt 00:00:32]} 43. Bb8 {[%clk 00:31:37]}
{[%emt 00:01:20]} Qf6 {[%clk 00:54:30]} {[%emt 00:00:28]} 44. Ra3 {[%clk
00:31:14]} {[%emt 00:00:53]} Nc2+ {[%clk 00:54:45]} {[%emt 00:00:15]} 45. Ka2
{[%clk 00:31:42]} {[%emt 00:00:01]} Nxa3 {[%clk 00:55:10]} {[%emt 00:00:06]}
0-1

[Event "IV Elllobregat Open Chess Tmnt"]
[Site "Sant Boi de Llobregat, Spain"]
[Date "2023.12.02"]
[Round "3.17"]
[White "Siddharth, Jagadeesh"]
[Black "Vallejo Pons, Francisco"]
[Result "1/2-1/2"]
[TimeControl "90min/40moves + 15min/end + 30sec from move 1"]
[WhiteFideId "5818320"]
[BlackFideId "2205530"]
[WhiteElo "2438"]
[BlackElo "2668"]

1. e4 {[%emt 00:29:26]} e6 {[%emt 00:00:33]} 2. d4 {[%emt 00:00:24]} d5 {[%emt
00:00:41]} 3. e5 {[%emt 00:00:08]} c5 {[%emt 00:00:07]} 4. c3 {[%emt 00:00:07]}
Nc6 {[%emt 00:00:08]} 5. Nf3 {[%emt 00:00:14]} Qc7 {[%emt 00:00:22]} 6. Bd3
{[%emt 00:09:01]} cxd4 {[%emt 00:01:19]} 7. cxd4 {[%emt 00:00:07]} Nb4 {[%emt
00:00:28]} 8. Bb5+ {[%emt 00:01:31]} Bd7 {[%emt 00:00:09]} 9. Bxd7+ {[%emt
00:00:11]} Kxd7 {[%emt 00:00:35]} 10. Na3 {[%emt 00:02:09]} Rc8 {[%emt
00:02:30]} 11. O-O {[%emt 00:03:40]} Nc2 {[%emt 00:06:43]} 12. Rb1 {[%emt
00:00:49]} Qc6 {[%emt 00:09:44]} 13. Qd3 {[%emt 00:18:00]} Qa6 {[%emt
00:06:48]} 14. Qb3 {[%emt 00:09:17]} Nxa3 {[%emt 00:05:05]} 15. bxa3 {[%emt
00:00:09]} b6 {[%emt 00:00:14]} 16. Bd2 {[%emt 00:12:41]} Nh6 {[%emt 00:18:25]}
17. a4 {[%emt 00:00:48]} Be7 {[%emt 00:07:21]} 18. a5 {[%emt 00:02:25]} Rc6
{[%emt 00:01:25]} 19. Bxh6 {[%emt 00:10:17]} gxh6 {[%emt 00:00:30]} 20. axb6
{[%emt 00:00:17]} Rxb6 {[%emt 00:12:45]} 21. Qe3 {[%emt 00:03:41]} h5 {[%emt
00:02:05]} 22. h3 {[%emt 00:08:32]} Rc8 {[%emt 00:01:01]} 23. Qh6 {[%emt
00:07:05]} Rxb1 {[%emt 00:05:20]} 24. Rxb1 {[%emt 00:00:02]} Qxa2 {[%emt
00:00:10]} 25. Rb7+ {[%emt 00:00:19]} Rc7 {[%emt 00:00:29]} 26. Rxc7+ {[%emt
00:00:05]} Kxc7 {[%emt 00:00:01]} 27. Qxh7 {[%emt 00:00:10]} a5 {[%emt
00:02:46]} 28. Qxf7 {[%emt 00:00:02]} Kd7 {[%emt 00:00:06]} 29. Nh4 {[%emt
00:03:42]} Qb1+ {[%emt 00:03:19]} 30. Kh2 {[%emt 00:00:02]} Qb8 {[%emt
00:00:16]} 31. Ng6 {[%emt 00:01:37]} Qe8 {[%emt 00:00:39]} 32. Qh7 {[%emt
00:00:07]} 1/2-1/2